fUST/lending_fUST_20240613
["ID","MTS","AMOUNT","RATE_DAILY","PERIOD"]
[329333996,1718254251362,-628.81,0.00016712,2]
[329333997,1718254251373,-1214.34,0.00016712,2]
[329333998,1718254251384,-500.0,0.00016712,2]
[329333999,1718254251396,-500.0,0.00016712,2]
[329334000,1718254251406,-500.0,0.00016712,2]
[329334001,1718254251418,-500.0,0.00016712,2]
[329334002,1718254251429,-500.0,0.00016712,2]
[329334003,1718254251446,-3891.73,0.00016712,2]
[329334004,1718254251475,-500.0,0.00016712,2]
[329334005,1718254251486,-1329.33,0.00016712,2]
[329334006,1718254251497,-500.0,0.00016712,2]
[329334007,1718254251511,-500.0,0.00016712,2]
[329334008,1718254251534,-500.0,0.00016712,2]
[329334009,1718254251545,-500.0,0.00016712,2]
[329334010,1718254251556,-500.0,0.00016712,2]
[329334011,1718254251572,-500.0,0.00016712,2]
[329334012,1718254251583,-500.0,0.00016712,2]
[329334013,1718254251600,-500.0,0.00016712,2]
[329334014,1718254251612,-500.0,0.00016712,2]
[329334015,1718254251630,-500.0,0.00016712,2]
[329334016,1718254251643,-504.16272299,0.00016712,2]
[329334017,1718254251654,-500.0,0.00016712,2]
[329334018,1718254251665,-500.0,0.00016712,2]
[329334019,1718254251677,-634.13,0.00016712,2]
[329334020,1718254251688,-500.0,0.00016712,2]
[329334021,1718254251704,-500.0,0.00016712,2]
[329334022,1718254251717,-500.0,0.00016712,2]
[329334023,1718254251732,-2031.6,0.00016712,2]
[329334024,1718254251744,-500.0,0.00016712,2]
[329334025,1718254251758,-500.0,0.00016712,2]
[329334026,1718254251778,-500.0,0.00016712,2]
[329334027,1718254251794,-500.0,0.00016712,2]
[329334028,1718254251809,-500.0,0.00016712,2]
[329334029,1718254251821,-500.0,0.00016712,2]
[329334030,1718254251832,-500.0,0.00016712,2]
[329334031,1718254251856,-500.0,0.00016712,2]
[329334032,1718254251871,-500.0,0.00016712,2]
[329334033,1718254251887,-500.0,0.00016712,2]
[329334034,1718254251901,-500.0,0.00016712,2]
[329334035,1718254251916,-1395.10765724,0.00016886,2]
[329334036,1718254251927,-1004.20870969,0.00016886,2]
[329334037,1718254251946,-2000.0,0.000169,2]
[329334038,1718254251960,-179.83232979,0.00016984,2]
[329334039,1718254251976,-500.0,0.00016985,2]
[329334040,1718254251987,-500.0,0.00016986,2]
[329334041,1718254252000,-500.0,0.00016986,2]
[329334042,1718254252017,-509.02,0.00016986,2]
[329334043,1718254252045,-169.95694796,0.00016986,2]
[329334044,1718254252056,-500.0,0.00016986,2]
[329334045,1718254252068,-500.0,0.00016986,2]
[329334046,1718254252081,-500.0,0.00016986,2]
[329334047,1718254252093,-500.0,0.00016986,2]
[329334048,1718254252104,-500.0,0.00016986,2]
[329334049,1718254252116,-500.0,0.00016986,2]
[329334050,1718254252130,-500.0,0.00016986,2]
[329334051,1718254252142,-500.0,0.00016986,2]
[329334052,1718254252153,-2127.73,0.00016986,2]
[329334053,1718254252165,-500.0,0.00016986,2]
[329334054,1718254252183,-500.0,0.00016986,2]
[329334055,1718254252196,-500.0,0.00016986,2]
[329334056,1718254252208,-500.0,0.00016986,2]
[329334057,1718254252223,-500.0,0.00016986,2]
[329334058,1718254252235,-564.68,0.00016986,2]
[329334059,1718254252252,-507.47047557,0.00016986,2]
[329334060,1718254252264,-192.44892117,0.00016986,2]
[329334061,1718254252276,-1214.33,0.00016986,2]
[329334062,1718254252287,-500.0,0.00016986,2]
[329334063,1718254252299,-500.0,0.00016986,2]
[329334064,1718254252310,-500.0,0.00016986,2]
[329334065,1718254252321,-1121.52,0.00016986,2]
[329334066,1718254252333,-500.0,0.00016986,2]
[329334067,1718254252345,-500.0,0.00016986,2]
[329334068,1718254252358,-500.0,0.00016986,2]
[329334069,1718254252370,-1059.12,0.00016986,2]
[329334070,1718254252382,-500.0,0.00016986,2]
[329334071,1718254252392,-196.83589042,0.00016986,2]
[329334072,1718254252403,-674.39,0.00016986,2]
[329334073,1718254252414,-524.35,0.00016986,2]
[329334074,1718254252425,-811.99,0.00016986,2]
[329334075,1718254252435,-500.0,0.00016986,2]
[329334076,1718254252446,-500.0,0.00016986,2]
[329334077,1718254252457,-500.0,0.00016986,2]
[329334078,1718254252468,-500.0,0.00016986,2]
[329334079,1718254252481,-1753.78,0.00016986,2]
[329334080,1718254252492,-500.0,0.00016986,2]
[329334081,1718254252502,-500.0,0.00016986,2]
[329334082,1718254252513,-500.0,0.00016986,2]
[329334083,1718254252524,-500.0,0.00016986,2]
[329334084,1718254252535,-2947.56,0.00016986,2]
[329334085,1718254252546,-5102.62,0.00016986,2]
[329334086,1718254252557,-500.0,0.00016986,2]
[329334087,1718254252572,-628.81,0.00016986,2]
[329334088,1718254252585,-1214.34,0.00016986,2]
[329334089,1718254252596,-500.0,0.00016986,2]
[329334090,1718254252608,-500.0,0.00016986,2]
[329334091,1718254252620,-500.0,0.00016986,2]
[329334092,1718254252631,-521.64882826,0.00016986,2]
[329334093,1718254252645,-500.0,0.00016986,2]
[329334094,1718254252656,-3891.73,0.00016986,2]
[329334095,1718254252667,-1329.33,0.00016986,2]
[329334096,1718254252678,-500.0,0.00016986,2]
[329334097,1718254252689,-500.0,0.00016986,2]
[329334098,1718254252703,-500.0,0.00016986,2]
[329334099,1718254252714,-246.32581133,0.00016986,2]
[329334100,1718254252729,-500.0,0.00016986,2]
[329334101,1718254252742,-500.0,0.00016986,2]
[329334102,1718254252756,-500.0,0.00016986,2]
[329334103,1718254252768,-500.0,0.00016986,2]
[329334104,1718254252781,-500.0,0.00016986,2]
[329334105,1718254252796,-634.13,0.00016986,2]
[329334106,1718254252811,-500.0,0.00016986,2]
[329334107,1718254252821,-500.0,0.00016986,2]
[329334108,1718254252836,-500.0,0.00016986,2]
[329334109,1718254252852,-2031.6,0.00016986,2]
[329334110,1718254252872,-400.013277,0.00016986,2]
[329334111,1718254252883,-500.0,0.00016986,2]
[329334112,1718254252895,-511.52837509,0.00016986,2]
[329334113,1718254252905,-500.0,0.00016986,2]
[329334114,1718254252916,-500.0,0.00016986,2]
[329334115,1718254252927,-500.0,0.00016986,2]
[329334116,1718254252945,-508.92713412,0.00016986,2]
[329334117,1718254252957,-500.0,0.00016986,2]
[329334118,1718254252975,-338.11908651,0.00016986,2]
[329334119,1718254252986,-174726.13708746,0.00017,2]
[329334120,1718254252999,-150.0,0.00017157,2]
[329334121,1718254253009,-20442.8523576,0.00017257,2]
[329334122,1718254253024,-500.0,0.00017259,2]
[329334123,1718254253039,-500.0,0.0001726,2]
[329334124,1718254253056,-500.0,0.0001726,2]
[329334125,1718254253066,-509.02,0.0001726,2]
[329334126,1718254253077,-500.0,0.0001726,2]
[329334127,1718254253087,-478.36068504,0.0001726,2]
[329334128,1718254253098,-500.0,0.0001726,2]
[329334129,1718254253108,-500.0,0.0001726,2]
[329334130,1718254253119,-500.0,0.0001726,2]
[329334131,1718254253129,-219.23059052,0.0001726,2]
[329334132,1718254253139,-500.0,0.0001726,2]
[329334133,1718254253149,-2127.73,0.0001726,2]
[329334134,1718254253159,-500.0,0.0001726,2]
[329334135,1718254253169,-500.0,0.0001726,2]
[329334136,1718254253179,-500.0,0.0001726,2]
[329334137,1718254253190,-564.68,0.0001726,2]
[329334138,1718254253200,-1214.33,0.0001726,2]
[329334139,1718254253210,-526.36112683,0.0001726,2]
[329334140,1718254253221,-500.0,0.0001726,2]
[329334141,1718254253233,-1121.52,0.0001726,2]
[329334142,1718254253244,-500.0,0.0001726,2]
[329334143,1718254253254,-500.0,0.0001726,2]
[329334144,1718254253265,-500.0,0.0001726,2]
[329334145,1718254253275,-1059.12,0.0001726,2]
[329334146,1718254253286,-500.0,0.0001726,2]
[329334147,1718254253299,-674.39,0.0001726,2]
[329334148,1718254253311,-524.35,0.0001726,2]
[329334149,1718254253322,-811.99,0.0001726,2]
[329334150,1718254253334,-500.0,0.0001726,2]
[329334151,1718254253349,-500.0,0.0001726,2]
[329334152,1718254253368,-500.0,0.0001726,2]
[329334153,1718254253380,-500.0,0.0001726,2]
[329334154,1718254253390,-1753.78,0.0001726,2]
[329334155,1718254253401,-500.0,0.0001726,2]
[329334156,1718254253414,-500.0,0.0001726,2]
[329334157,1718254253425,-500.0,0.0001726,2]
[329334158,1718254253439,-2947.56,0.0001726,2]
[329334159,1718254253450,-5102.62,0.0001726,2]
[329334160,1718254253463,-500.0,0.0001726,2]
[329334161,1718254253482,-628.81,0.0001726,2]
[329334162,1718254253496,-1214.34,0.0001726,2]
[329334163,1718254253508,-500.0,0.0001726,2]
[329334164,1718254253521,-500.0,0.0001726,2]
[329334165,1718254253545,-500.0,0.0001726,2]
[329334166,1718254253656,-620.7636615,0.0001726,2]
[329334167,1718254253681,-3891.73,0.0001726,2]
[329334168,1718254253693,-1329.33,0.0001726,2]
[329334169,1718254253707,-188.56937721,0.0001726,2]
[329334170,1718254253730,-500.0,0.0001726,2]
[329334171,1718254253740,-500.0,0.0001726,2]
[329334172,1718254253752,-507.48708702,0.0001726,2]
[329334173,1718254253764,-503.94912556,0.0001726,2]
[329334174,1718254253775,-500.0,0.0001726,2]
[329334175,1718254253788,-500.0,0.0001726,2]
[329334176,1718254253800,-634.13,0.0001726,2]
[329334177,1718254253811,-527.95727625,0.0001726,2]
[329334178,1718254253822,-500.0,0.0001726,2]
[329334179,1718254253832,-2031.6,0.0001726,2]
[329334180,1718254253843,-500.0,0.0001726,2]
[329334181,1718254253854,-500.0,0.0001726,2]
[329334182,1718254253865,-500.0,0.0001726,2]
[329334183,1718254253877,-500.0,0.0001726,2]
[329334184,1718254253888,-500.0,0.0001726,2]
[329334185,1718254253898,-165.0137631,0.00017324,2]
[329334186,1718254253909,-1395.10765724,0.0001739,2]
[329334187,1718254253920,-150.0,0.0001739,2]
[329334188,1718254253931,-500.0,0.00017534,2]
[329334189,1718254253942,-500.0,0.00017534,2]
[329334190,1718254253953,-509.02,0.00017534,2]
[329334191,1718254253976,-500.0,0.00017534,2]
[329334192,1718254253986,-610.76651783,0.00017534,2]
[329334193,1718254253997,-500.0,0.00017534,2]
[329334194,1718254254009,-500.0,0.00017534,2]
[329334195,1718254254022,-2127.73,0.00017534,2]
[329334196,1718254254048,-500.0,0.00017534,2]
[329334197,1718254254060,-500.0,0.00017534,2]
[329334198,1718254254071,-500.0,0.00017534,2]
[329334199,1718254254081,-564.68,0.00017534,2]
[329334200,1718254254092,-1214.33,0.00017534,2]
[329334201,1718254254103,-500.0,0.00017534,2]
[329334202,1718254254114,-1121.52,0.00017534,2]
[329334203,1718254254126,-500.0,0.00017534,2]
[329334204,1718254254138,-500.0,0.00017534,2]
[329334205,1718254254149,-532.58386748,0.00017534,2]
[329334206,1718254254160,-1059.12,0.00017534,2]
[329334207,1718254254175,-500.0,0.00017534,2]
[329334208,1718254254186,-674.39,0.00017534,2]
[329334209,1718254254204,-524.35,0.00017534,2]
[329334210,1718254254216,-811.99,0.00017534,2]
[329334211,1718254254231,-500.0,0.00017534,2]
[329334212,1718254254258,-500.0,0.00017534,2]
[329334213,1718254254270,-1753.78,0.00017534,2]
[329334214,1718254254287,-500.0,0.00017534,2]
[329334215,1718254254299,-2947.56,0.00017534,2]
[329334216,1718254254310,-5102.62,0.00017534,2]
[329334217,1718254254321,-500.0,0.00017534,2]
[329334218,1718254254334,-628.81,0.00017534,2]
[329334219,1718254254348,-1214.34,0.00017534,2]
[329334220,1718254254366,-500.0,0.00017534,2]
[329334221,1718254254380,-3891.73,0.00017534,2]
[329334222,1718254254392,-1329.33,0.00017534,2]
[329334223,1718254254403,-500.0,0.00017534,2]
[329334224,1718254254414,-500.0,0.00017534,2]
[329334225,1718254254434,-522.26329465,0.00017534,2]
[329334226,1718254254445,-634.13,0.00017534,2]
[329334227,1718254254458,-2031.6,0.00017534,2]
[329334228,1718254254471,-500.0,0.00017534,2]
[329334229,1718254254484,-500.0,0.00017534,2]
[329334230,1718254254497,-500.0,0.00017534,2]
[329334231,1718254254521,-500.0,0.00017534,2]
[329334232,1718254254536,-500.0,0.00017534,2]
[329334233,1718254254548,-150.0,0.00017661,2]
[329334234,1718254254565,-806.7,0.00017697,2]
[329334235,1718254254587,-500.0,0.00017808,2]
[329334236,1718254254598,-500.0,0.00017808,2]
[329334237,1718254254610,-509.02,0.00017808,2]
[329334238,1718254254622,-500.0,0.00017808,2]
[329334239,1718254254633,-500.0,0.00017808,2]
[329334240,1718254254644,-2127.73,0.00017808,2]
[329334241,1718254254658,-500.0,0.00017808,2]
[329334242,1718254254670,-500.0,0.00017808,2]
[329334243,1718254254681,-500.0,0.00017808,2]
[329334244,1718254254693,-564.68,0.00017808,2]
[329334245,1718254254703,-1214.33,0.00017808,2]
[329334246,1718254254715,-500.0,0.00017808,2]
[329334247,1718254254727,-1121.52,0.00017808,2]
[329334248,1718254254738,-500.0,0.00017808,2]
[329334249,1718254254749,-1059.12,0.00017808,2]
[329334250,1718254254760,-500.0,0.00017808,2]
[329334251,1718254254771,-674.39,0.00017808,2]
[329334252,1718254254782,-524.35,0.00017808,2]
[329334253,1718254254805,-811.99,0.00017808,2]
[329334254,1718254254815,-500.0,0.00017808,2]
[329334255,1718254254826,-500.0,0.00017808,2]
[329334256,1718254254840,-1753.78,0.00017808,2]
[329334257,1718254254850,-500.0,0.00017808,2]
[329334258,1718254254860,-2947.56,0.00017808,2]
[329334259,1718254254878,-5102.62,0.00017808,2]
[329334260,1718254254890,-500.0,0.00017808,2]
[329334261,1718254254902,-628.81,0.00017808,2]
[329334262,1718254254913,-1214.34,0.00017808,2]
[329334263,1718254254925,-500.0,0.00017808,2]
[329334264,1718254254942,-3891.73,0.00017808,2]
[329334265,1718254254958,-1329.33,0.00017808,2]
[329334266,1718254254978,-500.0,0.00017808,2]
[329334267,1718254254990,-634.13,0.00017808,2]
[329334268,1718254255004,-2031.6,0.00017808,2]
[329334269,1718254255015,-500.0,0.00017808,2]
[329334270,1718254255048,-500.0,0.00017808,2]
[329334271,1718254255061,-500.0,0.00017808,2]
[329334272,1718254255071,-500.0,0.00017808,2]
[329334273,1718254255082,-1395.10765724,0.00017893,2]
[329334274,1718254255094,-806.7,0.00017897,2]
[329334275,1718254255105,-876.95081653,0.00018,2]
[329334276,1718254255117,-70083.03885545,0.00018,2]
[329334277,1718254255128,-2765.7597697,0.00018,2]
[329334278,1718254255140,-476.76775304,0.00018,2]
[329334279,1718254255152,-31896.92727391,0.00018,2]
[329334280,1718254255170,-1355.76865896,0.00018,2]
[329334281,1718254255184,-152.008787,0.00018,2]
[329334282,1718254255203,-151.0,0.00018,2]
[329334283,1718254255215,-593.511182,0.00018,2]
[329334284,1718254255232,-151.0,0.00018,2]
[329334285,1718254255254,-593.511182,0.00018,2]
[329334286,1718254255265,-295.79539,0.00018,2]
[329334287,1718254255277,-295.79539,0.00018,2]
[329334288,1718254255287,-580.245543,0.00018,2]
[329334289,1718254255298,-580.245543,0.00018,2]
[329334290,1718254255311,-151.0,0.00018,2]
[329334291,1718254255322,-1000.0,0.00018,2]
[329334292,1718254255333,-1000.0,0.00018,2]
[329334293,1718254255346,-1000.0,0.00018,2]
[329334294,1718254255359,-1000.0,0.00018,2]
[329334295,1718254255370,-1000.0,0.00018,2]
[329334296,1718254255381,-1000.0,0.00018,2]
[329334297,1718254255392,-1000.0,0.00018,2]
[329334298,1718254255403,-1578.675525,0.00018,2]
[329334299,1718254255415,-1000.0,0.00018,2]
[329334300,1718254255426,-1000.0,0.00018,2]
[329334301,1718254255440,-1000.0,0.00018,2]
[329334302,1718254255453,-1000.0,0.00018,2]
[329334303,1718254255478,-1578.675525,0.00018,2]
[329334304,1718254255499,-682.222965,0.00018,2]
[329334305,1718254255513,-151.0,0.00018,2]
[329334306,1718254255538,-587.0,0.00018018,2]
[329334307,1718254255552,-150.0,0.00018027,2]
[329334308,1718254255571,-500.0,0.00018082,2]
[329334309,1718254255592,-500.0,0.00018082,2]
[329334310,1718254255623,-509.02,0.00018082,2]
[329334311,1718254255639,-500.0,0.00018082,2]
[329334312,1718254255659,-500.0,0.00018082,2]
[329334313,1718254255679,-2127.73,0.00018082,2]
[329334314,1718254255692,-563.22056136,0.00018082,2]
[329334315,1718254255703,-500.0,0.00018082,2]
[329334316,1718254255728,-237.94626967,0.00018082,2]
[329334317,1718254255744,-564.68,0.00018082,2]
[329334318,1718254255757,-1214.33,0.00018082,2]
[329334319,1718254255768,-500.0,0.00018082,2]
[329334320,1718254255781,-1121.52,0.00018082,2]
[329334321,1718254255796,-500.0,0.00018082,2]
[329334322,1718254255810,-1059.12,0.00018082,2]
[329334323,1718254255821,-674.39,0.00018082,2]
[329334324,1718254255832,-524.35,0.00018082,2]
[329334325,1718254255844,-811.99,0.00018082,2]
[329334326,1718254255859,-500.0,0.00018082,2]
[329334327,1718254255873,-500.0,0.00018082,2]
[329334328,1718254255886,-1753.78,0.00018082,2]
[329334329,1718254255898,-500.0,0.00018082,2]
[329334330,1718254255909,-2947.56,0.00018082,2]
[329334331,1718254255920,-5102.62,0.00018082,2]
[329334332,1718254255930,-500.0,0.00018082,2]
[329334333,1718254255943,-628.81,0.00018082,2]
[329334334,1718254255964,-1214.34,0.00018082,2]
[329334335,1718254255979,-500.0,0.00018082,2]
[329334336,1718254255996,-3891.73,0.00018082,2]
[329334337,1718254256010,-1329.33,0.00018082,2]
[329334338,1718254256046,-500.0,0.00018082,2]
[329334339,1718254256058,-634.13,0.00018082,2]
[329334340,1718254256069,-2031.6,0.00018082,2]
[329334341,1718254256081,-500.0,0.00018082,2]
[329334342,1718254256094,-500.0,0.00018082,2]
[329334343,1718254256104,-500.0,0.00018082,2]
[329334344,1718254256116,-500.0,0.00018082,2]
[329334345,1718254256132,-806.7,0.00018096,2]
[329334346,1718254256156,-287.200125,0.00018215,2]
[329334347,1718254256173,-522.81881047,0.00018275,2]
[329334348,1718254256186,-806.7,0.00018295,2]
[329334349,1718254256197,-150.0,0.00018314,2]
[329334350,1718254256209,-26456.4090235,0.00018356,13]
[329334351,1718254256220,-152.058189,0.00018356,2]
[329334352,1718254256233,-500.0,0.00018356,2]
[329334353,1718254256244,-500.0,0.00018356,2]
[329334354,1718254256254,-151.0,0.00018356,2]
[329334355,1718254256267,-151.0,0.00018356,2]
[329334356,1718254256278,-509.02,0.00018356,2]
[329334357,1718254256289,-500.0,0.00018356,2]
[329334358,1718254256299,-500.0,0.00018356,2]
[329334359,1718254256313,-152.133893,0.00018356,2]
[329334360,1718254256323,-2127.73,0.00018356,2]
[329334361,1718254256338,-500.0,0.00018356,2]
[329334362,1718254256349,-564.68,0.00018356,2]
[329334363,1718254256359,-1214.33,0.00018356,2]
[329334364,1718254256373,-500.0,0.00018356,2]
[329334365,1718254256388,-1121.52,0.00018356,2]
[329334366,1718254256411,-500.0,0.00018356,2]
[329334367,1718254256432,-1059.12,0.00018356,2]
[329334368,1718254256486,-674.39,0.00018356,2]
[329334369,1718254256508,-524.35,0.00018356,2]
[329334370,1718254256530,-811.99,0.00018356,2]
[329334371,1718254256549,-500.0,0.00018356,2]
[329334372,1718254256601,-500.0,0.00018356,2]
[329334373,1718254256647,-1753.78,0.00018356,2]
[329334374,1718254256664,-151.0,0.00018356,2]
[329334375,1718254256679,-295.79539,0.00018356,2]
[329334376,1718254256692,-295.79539,0.00018356,2]
[329334377,1718254256712,-580.245543,0.00018356,2]
[329334378,1718254256723,-580.245543,0.00018356,2]
[329334379,1718254256737,-500.0,0.00018356,2]
[329334380,1718254256750,-151.0,0.00018356,2]
[329334381,1718254256779,-2947.56,0.00018356,2]
[329334382,1718254256804,-5102.62,0.00018356,2]
[329334383,1718254256819,-500.0,0.00018356,2]
[329334384,1718254256851,-628.81,0.00018356,2]
[329334385,1718254256863,-1214.34,0.00018356,2]
[329334386,1718254256894,-500.0,0.00018356,2]
[329334387,1718254256911,-3891.73,0.00018356,2]
[329334388,1718254256927,-1329.33,0.00018356,2]
[329334389,1718254256945,-500.0,0.00018356,2]
[329334390,1718254256963,-1578.675525,0.00018356,2]
[329334391,1718254256985,-634.13,0.00018356,2]
[329334392,1718254256997,-1578.675525,0.00018356,2]
[329334393,1718254257014,-2031.6,0.00018356,2]
[329334394,1718254257052,-151.0,0.00018356,2]
[329334395,1718254257086,-500.0,0.00018356,2]
[329334396,1718254257104,-500.0,0.00018356,2]
[329334397,1718254257118,-500.0,0.00018356,2]
[329334398,1718254257128,-153.0,0.00018357,2]
[329334399,1718254257139,-153.0,0.00018357,2]
[329334400,1718254257152,-153.0,0.00018357,2]
[329334401,1718254257168,-1395.10765724,0.00018397,2]
[329334402,1718254257182,-150.0,0.00018425,2]
[329334403,1718254257195,-159.4446589,0.00018466,2]
[329334404,1718254257207,-153.0,0.00018466,2]
[329334405,1718254257220,-153.0,0.00018466,2]
[329334406,1718254257242,-806.7,0.00018494,2]
[329334407,1718254257265,-544.78593254,0.000185,2]
[329334408,1718254257276,-166.666666,0.00018575,2]
[329334409,1718254257293,-500.0,0.0001863,2]
[329334410,1718254257308,-500.0,0.0001863,2]
[329334411,1718254257327,-509.02,0.0001863,2]
[329334412,1718254257339,-500.0,0.0001863,2]
[329334413,1718254257356,-500.0,0.0001863,2]
[329334414,1718254257367,-151.0,0.0001863,2]
[329334415,1718254257386,-2127.73,0.0001863,2]
[329334416,1718254257416,-151.0,0.0001863,2]
[329334417,1718254257437,-151.0,0.0001863,2]
[329334418,1718254257460,-500.0,0.0001863,2]
[329334419,1718254257480,-1173.980648,0.0001863,2]
[329334420,1718254257491,-151.0,0.0001863,2]
[329334421,1718254257501,-1173.980648,0.0001863,2]
[329334422,1718254257510,-569.721875,0.0001863,2]
[329334423,1718254257528,-569.721875,0.0001863,2]
[329334424,1718254257550,-151.0,0.0001863,2]
[329334425,1718254257568,-151.0,0.0001863,2]
[329334426,1718254257581,-564.68,0.0001863,2]
[329334427,1718254257599,-326.944004,0.0001863,2]
[329334428,1718254257612,-326.944004,0.0001863,2]
[329334429,1718254257626,-151.0,0.0001863,2]
[329334430,1718254257637,-151.0,0.0001863,2]
[329334431,1718254257651,-457.251663,0.0001863,2]
[329334432,1718254257662,-457.251663,0.0001863,2]
[329334433,1718254257679,-216.996502,0.0001863,2]
[329334434,1718254257698,-1214.33,0.0001863,2]
[329334435,1718254257710,-151.0,0.0001863,2]
[329334436,1718254257722,-1019.512331,0.0001863,2]
[329334437,1718254257735,-500.0,0.0001863,2]
[329334438,1718254257746,-1121.52,0.0001863,2]
[329334439,1718254257757,-1019.512331,0.0001863,2]
[329334440,1718254257770,-500.0,0.0001863,2]
[329334441,1718254257783,-1059.12,0.0001863,2]
[329334442,1718254257796,-151.0,0.0001863,2]
[329334443,1718254257815,-151.744021,0.0001863,2]
[329334444,1718254257835,-151.0,0.0001863,2]
[329334445,1718254257856,-674.39,0.0001863,2]
[329334446,1718254257874,-524.35,0.0001863,2]
[329334447,1718254257897,-151.0,0.0001863,2]
[329334448,1718254257922,-811.99,0.0001863,2]
[329334449,1718254257932,-500.0,0.0001863,2]
[329334450,1718254257945,-500.0,0.0001863,2]
[329334451,1718254257958,-593.511182,0.0001863,2]
[329334452,1718254257974,-1753.78,0.0001863,2]
[329334453,1718254257986,-593.511182,0.0001863,2]
[329334454,1718254257996,-205.42921224,0.0001863,2]
[329334455,1718254258231,-294.57078776,0.0001863,2]
[329334456,1718254258245,-2947.56,0.0001863,2]
[329334457,1718254258261,-4099.85162771,0.0001863,2]
[329334458,1718254258454,-500.38273639,0.00016438,2]
[329334459,1718254258471,-136.17858401,0.00016438,2]
[329334460,1718254258513,-363.82141599,0.00016438,2]
[329334461,1718254258534,-500.0,0.00016986,2]
[329334462,1718254258568,-1002.76837229,0.0001863,2]
[329334463,1718254258578,-500.0,0.0001863,2]
[329334464,1718254258595,-628.81,0.0001863,2]
[329334465,1718254258615,-1214.34,0.0001863,2]
[329334466,1718254258627,-500.0,0.0001863,2]
[329334467,1718254258641,-3891.73,0.0001863,2]
[329334468,1718254258653,-1329.33,0.0001863,2]
[329334469,1718254258664,-500.0,0.0001863,2]
[329334470,1718254258675,-634.13,0.0001863,2]
[329334471,1718254258697,-2031.6,0.0001863,2]
[329334472,1718254258711,-151.0,0.0001863,2]
[329334473,1718254258726,-462.52904942,0.0001863,2]
[329334474,1718254258750,-500.0,0.0001863,2]
[329334475,1718254258763,-500.0,0.0001863,2]
[329334476,1718254258782,-250.0,0.0001863,2]
[329334477,1718254258799,-500.0,0.00018648,2]
[329334478,1718254258812,-151.064,0.00018648,2]
[329334479,1718254258825,-1750.0,0.00018648,2]
[329334480,1718254258844,-150.378,0.00018648,2]
[329334481,1718254258865,-806.7,0.00018693,2]
[329334482,1718254258885,-150.0,0.00018702,2]
[329334483,1718254258905,-162.0,0.0001872,2]
[329334484,1718254258943,-806.7,0.00018892,2]
[329334485,1718254258992,-938.98252434,0.000189,2]
[329334486,1718254259005,-1395.10765724,0.000189,2]
[329334487,1718254259018,-151.0,0.000189,2]
[329334488,1718254259056,-295.79539,0.000189,2]
[329334489,1718254259069,-295.79539,0.000189,2]
[329334490,1718254259092,-580.245543,0.000189,2]
[329334491,1718254259104,-580.245543,0.000189,2]
[329334492,1718254259117,-151.0,0.000189,2]
[329334493,1718254259130,-500.0,0.00018904,2]
[329334494,1718254259141,-500.0,0.00018904,2]
[329334495,1718254259156,-509.02,0.00018904,2]